[Event "1.FrauenBL 2016-17"]
[Site "Berlin"]
[Date "2017.04.29"]
[Round "9.2"]
[White "Zahn, Alina"]
[Black "Tran, My Linh"]
[Result "1-0"]
[ECO "C54"]
[WhiteElo "2020"]
[BlackElo "1990"]
[Annotator "NA"]
[PlyCount "197"]
[EventDate "2017.??.??"]
[EventType "team-tourn"]
[EventCountry "GER"]
[SourceTitle "playchess.com"]
[Source "ChessBase"]
[SourceQuality "1"]
[WhiteTeam "Hamburger SK"]
[BlackTeam "TuRa Harksheide"]
[TimeControl "40/6000+30:3000+30"]

1. e4 {[%emt 1:30:27]} e5 {[%emt 1:30:25]} 2. Nf3 {[%emt 1:30:25]} Nc6 {[%emt 1:30:53]} 3. Bc4 {[%emt 1:31:10]} Bc5 {[%emt 1:31:20]} 4. c3 {[%emt 1:31:28]} Nf6 {[%emt 1:31:46]} 5. d3 {[%emt 1:31:53]} a6 {[%emt 1:31:53]} 6. Bb3 {[%emt 1:31:59]} Ba7 {[%emt 1:31:59]} 7. Nbd2 {[%emt 1:31:24]} d6 {[%emt 1:31:24]} 8. O-O {[%emt 1:28:13]} O-O {[%emt 1:29:40]} 9. h3 {[%emt 1:29:40]} h6 {[%emt 1:16:54]} 10. Re1 {[%emt 1:16:54]} Re8 {[%emt 1:11:43]} 11. Nf1 {[%emt 1:26:26]} d5 {[%emt 1:10:56]} 12. Qe2 {[%emt 1:21:32]} Be6 {[%emt 1:03:16]} 13. Bc2 {[%emt 1:18:31]} b5 {[%emt 0:54:25]} 14. b3 {[%emt 0:54:25]} b4 {[%emt 0:43:38]} 15. Bb2 {[%emt 0:43:38]} bxc3 {[%emt 1:11:40]} 16. Bxc3 {[%emt 0:29:20]} Nd4 {[%emt 0:29:12]} 17. Nxd4 {[%emt 1:05:08]} exd4 {[%emt 0:29:40]} 18. Bd2 {[%emt 1:03:56]} Nd7 {[%emt 0:18:25]} 19. Qf3 {[%emt 0:18:25]} Ne5 {[%emt 0:59:00]} 20. Qg3 {[%emt 0:17:18]} Ng6 {[%emt 0:15:56]} 21. Bd1 {[%emt 0:15:56]} Kh7 {[%emt 0:06:36]} 22. Nh2 {[%emt 0:50:42]} c5 {[%emt 0:04:40]} 23. Bh5 {[%emt 0:42:33]} Bb8 {[%emt 0:42:33]} 24. f4 {[%emt 0:02:48]} Ne7 {[%emt 0:02:44]} 25. Qf2 {[%emt 0:02:44]} g6 {[%emt 0:01:54]} 26. f5 {[%emt 0:30:05]} Bxf5 {[%emt 0:01:02]} 27. exf5 {[%emt 0:30:19]} gxh5 {[%emt 0:01:28]} 28. Qf3 {[%emt 0:01:28]} Qd6 {[%emt 0:00:39]} 29. Nf1 {[%emt 0:27:15]} Bc7 {[%emt 0:00:49]} 30. Qxh5 {[%emt 0:26:53]} Qf6 {[%emt 0:01:17]} 31. Rac1 {[%emt 0:01:17]} Nxf5 {[%emt 0:01:02]} 32. Rxc5 {[%emt 0:11:25]} Rxe1 {[%emt 0:01:31]} 33. Bxe1 {[%emt 0:10:22]} Bd6 {[%emt 0:00:56]} 34. Rxd5 {[%emt 0:09:28]} Ne7 {[%emt 0:00:30]} 35. Rxd6 {[%emt 0:05:30]} Qxd6 {[%emt 0:00:37]} 36. Qxf7+ {[%emt 0:05:52]} Kh8 {[%emt 0:01:05]} 37. Bg3 {[%emt 0:05:55]} Qc5 {[%emt 0:00:27]} 38. b4 {[%emt 0:05:48]} Qg5 {[%emt 0:00:24]} 39. h4 {[%emt 0:02:31]} Qg7 {[%emt 0:00:33]} 40. Qe6 {[%emt 0:01:34]} Ng6 {[%emt 0:00:03]} 41. h5 {[%emt 0:01:07]} Kh7 {[%emt 0:01:07]} 42. hxg6+ {[%emt 0:26:49]} Qxg6 {[%emt 0:17:38]} 43. Qd7+ {[%emt 0:23:21]} Qg7 {[%emt 0:17:03]} 44. Qxg7+ {[%emt 0:17:32]} Kxg7 {[%emt 0:17:32]} 45. Be5+ {[%emt 0:23:48]} Kg6 {[%emt 0:23:48]} 46. Nd2 {[%emt 0:22:45]} Rc8 {[%emt 0:16:52]} 47. Bxd4 {[%emt 0:16:52]} Rc2 {[%emt 0:17:12]} 48. Nf3 {[%emt 0:18:18]} Rxa2 {[%emt 0:17:14]} 49. Bb6 {[%emt 0:15:27]} Kf6 {[%emt 0:15:05]} 50. Kh2 {[%emt 0:15:05]} Ra4 {[%emt 0:13:42]} 51. Bc5 {[%emt 0:09:18]} Ke6 {[%emt 0:09:18]} 52. Kg3 {[%emt 0:09:07]} Kd5 {[%emt 0:10:37]} 53. d4 {[%emt 0:08:56]} Ra2 {[%emt 0:10:05]} 54. Nh4 {[%emt 0:06:41]} a5 {[%emt 0:08:37]} 55. bxa5 {[%emt 0:08:37]} Rxa5 {[%emt 0:09:05]} 56. Nf5 {[%emt 0:06:48]} Ra6 {[%emt 0:08:43]} 57. Kh4 {[%emt 0:08:43]} Ke4 {[%emt 0:04:39]} 58. g4 {[%emt 0:05:52]} Kf4 {[%emt 0:03:28]} 59. Kh5 {[%emt 0:05:22]} Ra1 {[%emt 0:03:19]} 60. Bd6+ {[%emt 0:04:44]} Ke4 {[%emt 0:01:25]} 61. Be5 {[%emt 0:05:01]} Rh1+ {[%emt 0:01:19]} 62. Kg6 {[%emt 0:05:11]} Kf3 {[%emt 0:00:44]} 63. Nxh6 {[%emt 0:05:28]} Ke4 {[%emt 0:00:17]} 64. g5 {[%emt 0:05:45]} Rg1 {[%emt 0:00:32]} 65. Ng8 {[%emt 0:04:46]} Kd5 {[%emt 0:00:24]} 66. Bf6 {[%emt 0:04:44]} Rg2 {[%emt 0:00:44]} 67. Kf7 {[%emt 0:00:44]} Rxg5 {[%emt 0:00:42]} 68. Bxg5 {[%emt 0:04:09]} Kxd4 {[%emt 0:01:06]} 69. Ke6 {[%emt 0:04:28]} Ke4 {[%emt 0:01:11]} 70. Nf6+ {[%emt 0:04:48]} Kd4 {[%emt 0:01:38]} 71. Bh4 {[%emt 0:04:59]} Kc5 {[%emt 0:04:59]} 72. Bg3 {[%emt 0:05:21]} Kd4 {[%emt 0:01:48]} 73. Bf2+ {[%emt 0:05:39]} Kd3 {[%emt 0:02:00]} 74. Ke5 {[%emt 0:02:00]} Ke2 {[%emt 0:02:13]} 75. Bb6 {[%emt 0:05:55]} Kf3 {[%emt 0:05:55]} 76. Kf5 {[%emt 0:05:46]} Kg3 {[%emt 0:02:20]} 77. Ke4 {[%emt 0:04:20]} Kg2 {[%emt 0:02:05]} 78. Kf4 {[%emt 0:02:05]} Kh1 {[%emt 0:01:56]} 79. Kf3 {[%emt 0:04:33]} Kh2 {[%emt 0:02:20]} 80. Bc7+ {[%emt 0:04:23]} Kh1 {[%emt 0:02:48]} 81. Ng4 {[%emt 0:04:36]} Kg1 {[%emt 0:03:08]} 82. Nf2 {[%emt 0:04:40]} Kf1 {[%emt 0:03:23]} 83. Bh2 {[%emt 0:04:46]} Ke1 {[%emt 0:03:35]} 84. Ne4 {[%emt 0:04:45]} Kf1 {[%emt 0:04:45]} 85. Nd2+ {[%emt 0:03:51]} Ke1 {[%emt 0:04:16]} 86. Ke3 {[%emt 0:05:28]} Kd1 {[%emt 0:04:40]} 87. Kd3 {[%emt 0:04:40]} Ke1 {[%emt 0:05:04]} 88. Bg3+ {[%emt 0:05:04]} Kd1 {[%emt 0:05:33]} 89. Nc4 {[%emt 0:04:53]} Kc1 {[%emt 0:05:59]} 90. Be1 {[%emt 0:04:25]} Kd1 {[%emt 0:05:59]} 91. Bb4 {[%emt 0:04:50]} Kc1 {[%emt 0:06:23]} 92. Ne3 {[%emt 0:04:56]} Kb2 {[%emt 0:06:27]} 93. Kc4 {[%emt 0:05:07]} Kc1 {[%emt 0:06:28]} 94. Kc3 {[%emt 0:05:26]} Kb1 {[%emt 0:06:53]} 95. Ba3 {[%emt 0:05:33]} Ka2 {[%emt 0:05:33]} 96. Kb4 {[%emt 0:07:04]} Ka1 {[%emt 0:07:22]} 97. Kb3 {[%emt 0:06:03]} Kb1 {[%emt 0:07:46]} 98. Nf1 {[%emt 0:04:41]} Ka1 {[%emt 0:08:06]} 99. Bb2+ {[%emt 0:05:02]} 1-0

[Event "1.FrauenBL 2016-17"]
[Site "Berlin"]
[Date "2017.04.29"]
[Round "9.3"]
[White "Lubbe, Melanie"]
[Black "Savina, Anastasia"]
[Result "1/2-1/2"]
[ECO "B01"]
[WhiteElo "2298"]
[BlackElo "2378"]
[Annotator "NA"]
[PlyCount "94"]
[EventDate "2017.??.??"]
[EventType "team-tourn"]
[EventCountry "GER"]
[SourceTitle "playchess.com"]
[Source "ChessBase"]
[SourceQuality "1"]
[WhiteTeam "Rodewischer SM"]
[BlackTeam "SC Bad Königshofen"]
[TimeControl "40/6000+30:3000+30"]

1. e4 {[%emt 1:30:27]} Nc6 {[%emt 1:30:27]} 2. d4 {[%emt 1:30:02]} d5 {[%emt 1:30:43]} 3. exd5 {[%emt 1:19:59]} Qxd5 {[%emt 1:29:06]} 4. Nf3 {[%emt 1:13:56]} e5 {[%emt 1:17:55]} 5. dxe5 {[%emt 0:58:13]} Qxd1+ {[%emt 1:10:04]} 6. Kxd1 {[%emt 0:57:54]} Bc5 {[%emt 1:05:29]} 7. Bc4 $15 {[%emt 0:44:07]} Bg4 {[%emt 0:52:13]} 8. Bf4 {[%emt 0:52:13]} Bxf2 {[%emt 0:48:55]} 9. Nbd2 {[%emt 0:39:26]} Nge7 {[%emt 0:39:26]} 10. Rf1 {[%emt 0:37:42]} Ng6 {[%emt 0:36:17]} 11. Rxf2 {[%emt 0:32:23]} Nxf4 {[%emt 0:36:10]} 12. h3 {[%emt 0:28:30]} Be6 {[%emt 0:30:45]} 13. Ng5 {[%emt 0:22:17]} Nd5 {[%emt 0:24:45]} 14. Nxe6 {[%emt 0:19:41]} fxe6 {[%emt 0:19:41]} 15. Bb5 {[%emt 0:18:46]} Ne3+ {[%emt 0:19:46]} 16. Ke2 {[%emt 0:19:46]} Nxc2 {[%emt 0:18:29]} 17. Bxc6+ {[%emt 0:14:39]} bxc6 {[%emt 0:18:55]} 18. Rc1 {[%emt 0:14:54]} Nd4+ {[%emt 0:19:01]} 19. Kd3 {[%emt 0:13:46]} O-O-O {[%emt 0:13:46]} 20. Ke4 {[%emt 0:12:22]} Nf5 {[%emt 0:10:06]} 21. Nb3 {[%emt 0:09:09]} Rhf8 {[%emt 0:06:58]} 22. Rf3 {[%emt 0:08:25]} Nh4 {[%emt 0:02:27]} 23. Rxf8 {[%emt 0:07:21]} Rxf8 {[%emt 0:02:55]} 24. Nc5 {[%emt 0:06:44]} Ng6 {[%emt 0:00:58]} 25. Nxe6 {[%emt 0:05:12]} Re8 {[%emt 0:01:05]} 26. Nxg7 {[%emt 0:05:28]} Rxe5+ {[%emt 0:01:25]} 27. Kf3 {[%emt 0:04:14]} Nh4+ {[%emt 0:00:31]} 28. Kg3 {[%emt 0:03:58]} Nxg2 {[%emt 0:00:11]} 29. Kxg2 {[%emt 0:04:24]} Rg5+ {[%emt 0:00:39]} 30. Kf3 {[%emt 0:04:48]} Rxg7 {[%emt 0:01:06]} 31. Rxc6 {[%emt 0:05:13]} Kb7 {[%emt 0:00:43]} 32. Rc2 {[%emt 0:05:03]} Kb6 {[%emt 0:00:51]} 33. h4 {[%emt 0:03:39]} Kb5 {[%emt 0:00:15]} 34. h5 {[%emt 0:02:50]} c5 {[%emt 0:00:28]} 35. Kf4 {[%emt 0:02:13]} h6 {[%emt 0:00:15]} 36. Re2 {[%emt 0:01:10]} Rg5 {[%emt 0:00:08]} 37. Re5 {[%emt 0:01:11]} Rg2 {[%emt 0:00:36]} 38. a4+ {[%emt 0:01:07]} Kb4 {[%emt 0:00:19]} 39. Re6 {[%emt 0:01:02]} Rxb2 {[%emt 0:00:09]} 40. Rxh6 {[%emt 0:01:25]} c4 {[%emt 0:00:05]} 41. Rh7 {[%emt 0:00:05]} c3 {[%emt 0:05:54]} 42. Rxa7 {[%emt 0:11:46]} Rh2 {[%emt 0:04:47]} 43. Kg5 {[%emt 0:05:47]} c2 {[%emt 0:04:07]} 44. Rc7 {[%emt 0:05:54]} Kxa4 {[%emt 0:05:54]} 45. h6 {[%emt 0:05:33]} Kb3 {[%emt 0:04:20]} 46. Kg6 {[%emt 0:05:30]} Kb2 {[%emt 0:03:40]} 47. h7 {[%emt 0:03:40]} c1=Q 1/2-1/2

[Event "1.FrauenBL 2016-17"]
[Site "Berlin"]
[Date "2017.04.29"]
[Round "9.3"]
[White "Mueller-Ludwig, Kristin"]
[Black "Duessler, Stefanie"]
[Result "0-1"]
[ECO "B48"]
[WhiteElo "2080"]
[BlackElo "2086"]
[Annotator "NA"]
[PlyCount "100"]
[EventDate "2017.??.??"]
[EventType "team-tourn"]
[EventCountry "GER"]
[SourceTitle "playchess.com"]
[Source "ChessBase"]
[SourceQuality "1"]
[WhiteTeam "SV Medizin Erfurt"]
[BlackTeam "SK Lehrte"]
[TimeControl "40/6000+30:3000+30"]

1. e4 {[%emt 1:30:26]} c5 {[%emt 1:30:25]} 2. Nf3 {[%emt 1:30:45]} e6 {[%emt 1:30:50]} 3. d4 {[%emt 1:31:05]} cxd4 {[%emt 1:31:18]} 4. Nxd4 {[%emt 1:31:30]} Nc6 {[%emt 1:31:30]} 5. Nc3 {[%emt 1:31:07]} Qc7 {[%emt 1:31:07]} 6. Be3 {[%emt 1:29:43]} a6 {[%emt 1:32:33]} 7. Bd3 {[%emt 1:32:33]} Nf6 {[%emt 1:31:57]} 8. O-O {[%emt 1:24:25]} Ne5 {[%emt 1:27:58]} 9. f4 {[%emt 0:57:45]} Neg4 {[%emt 1:25:41]} 10. Bc1 {[%emt 0:40:23]} Bc5 {[%emt 1:24:35]} 11. Be2 {[%emt 0:40:43]} Qb6 {[%emt 1:03:43]} 12. Bxg4 {[%emt 1:03:43]} Bxd4+ {[%emt 1:04:08]} 13. Kh1 {[%emt 0:41:22]} Bxc3 {[%emt 1:02:16]} 14. bxc3 {[%emt 0:41:49]} Nxe4 {[%emt 1:02:38]} 15. Qd4 {[%emt 1:02:38]} Qxd4 {[%emt 1:02:56]} 16. cxd4 {[%emt 0:41:16]} b5 {[%emt 0:59:53]} 17. Bf3 {[%emt 0:35:48]} Bb7 {[%emt 1:00:16]} 18. Ba3 {[%emt 0:31:52]} f5 {[%emt 0:31:52]} 19. Rac1 {[%emt 0:22:02]} Rc8 {[%emt 0:22:02]} 20. Bb4 {[%emt 0:19:34]} Kf7 {[%emt 0:59:02]} 21. Kg1 {[%emt 0:19:02]} Bd5 {[%emt 0:59:07]} 22. Bxe4 {[%emt 0:17:51]} Bxe4 {[%emt 0:58:58]} 23. c3 {[%emt 0:18:06]} Rc6 {[%emt 0:18:06]} 24. Ra1 {[%emt 0:17:15]} g5 {[%emt 0:40:32]} 25. fxg5 {[%emt 0:12:10]} Rg8 {[%emt 0:41:00]} 26. a4 {[%emt 0:41:00]} Rxg5 {[%emt 0:37:46]} 27. Rf2 {[%emt 0:10:23]} bxa4 {[%emt 0:10:23]} 28. Rxa4 {[%emt 0:37:47]} Bd3 {[%emt 0:38:09]} 29. Ra5 {[%emt 0:10:07]} Bb5 {[%emt 0:37:40]} 30. Raa2 {[%emt 0:09:51]} Rg4 {[%emt 0:36:11]} 31. Ra1 {[%emt 0:05:58]} Re4 {[%emt 0:35:51]} 32. Rd1 {[%emt 0:05:39]} Bc4 {[%emt 0:35:02]} 33. Rfd2 {[%emt 0:03:35]} Rc8 {[%emt 0:03:35]} 34. g3 {[%emt 0:03:29]} h5 {[%emt 0:32:20]} 35. Kf2 {[%emt 0:03:47]} h4 {[%emt 0:30:30]} 36. Re1 {[%emt 0:02:48]} hxg3+ {[%emt 0:30:24]} 37. hxg3 {[%emt 0:03:13]} Rxe1 {[%emt 0:30:18]} 38. Kxe1 {[%emt 0:03:39]} Rh8 {[%emt 0:30:37]} 39. Kf2 {[%emt 0:03:31]} Rh1 {[%emt 0:28:57]} 40. Ke3 {[%emt 0:03:45]} Ra1 {[%emt 0:27:23]} 41. Rh2 {[%emt 0:04:05]} a5 {[%emt 0:27:14]} 42. Bd6 {[%emt 0:04:19]} a4 {[%emt 0:26:09]} 43. Kf4 {[%emt 0:02:31]} Kg6 {[%emt 0:24:15]} 44. Rh8 {[%emt 0:24:15]} a3 {[%emt 0:20:29]} 45. Rg8+ {[%emt 0:02:13]} Kh7 {[%emt 0:02:13]} 46. Ra8 {[%emt 0:28:56]} a2 {[%emt 0:28:56]} 47. Kg5 {[%emt 0:27:21]} Kg7 {[%emt 0:27:44]} 48. Be5+ {[%emt 0:27:24]} Kf7 {[%emt 0:28:09]} 49. Rh8 {[%emt 0:27:43]} d6 {[%emt 0:28:12]} 50. Z0 {[%emt 0:28:12]} Bb5 {[%emt 0:28:12] Kg6 0:28:12} 0-1

[Event "1.FrauenBL 2016-17"]
[Site "Berlin"]
[Date "2017.04.29"]
[Round "9.3"]
[White "Evers, Annika"]
[Black "Schmidt, Jade"]
[Result "1/2-1/2"]
[ECO "D12"]
[WhiteElo "1808"]
[BlackElo "2131"]
[Annotator "NA"]
[PlyCount "62"]
[EventDate "2017.??.??"]
[EventType "team-tourn"]
[EventCountry "GER"]
[SourceTitle "playchess.com"]
[Source "ChessBase"]
[SourceQuality "1"]
[WhiteTeam "TuRa Harksheide"]
[BlackTeam "Hamburger SK"]
[TimeControl "40/6000+30:3000+30"]

1. d4 {[%emt 1:30:27]} d5 {[%emt 1:30:19]} 2. Nf3 {[%emt 1:30:53]} c6 {[%emt 1:29:28]} 3. e3 {[%emt 1:30:41]} Nf6 {[%emt 1:29:13]} 4. Nbd2 {[%emt 1:29:46]} Bf5 {[%emt 1:28:35]} 5. c4 {[%emt 1:29:43]} e6 {[%emt 1:29:43]} 6. Nh4 {[%emt 1:29:46]} Bg4 {[%emt 1:26:01]} 7. Qb3 {[%emt 1:26:12]} Qb6 {[%emt 1:18:41]} 8. Bd3 {[%emt 1:23:45]} Be7 {[%emt 1:01:32]} 9. Nhf3 {[%emt 1:15:21]} Nbd7 {[%emt 1:01:13]} 10. O-O {[%emt 1:15:28]} O-O {[%emt 0:59:00]} 11. Qc2 {[%emt 1:14:16]} Qc7 {[%emt 1:14:16]} 12. b3 {[%emt 1:08:09]} Bh5 {[%emt 1:08:09]} 13. Bb2 {[%emt 1:08:09]} Bg6 {[%emt 0:39:21]} 14. Bxg6 {[%emt 1:05:14]} hxg6 {[%emt 0:39:45]} 15. cxd5 $11 {[%emt 1:00:12]} exd5 {[%emt 0:39:13]} 16. Ne5 {[%emt 0:57:09]} Bd6 {[%emt 0:34:50]} 17. f4 {[%emt 0:54:28]} Rfe8 {[%emt 0:33:18]} 18. Rf3 {[%emt 0:47:22]} Nf8 {[%emt 0:32:08]} 19. Raf1 {[%emt 0:41:36]} Re7 {[%emt 0:26:37]} 20. Rg3 {[%emt 0:37:17]} N8h7 {[%emt 0:24:21]} 21. Ndf3 {[%emt 0:31:37]} Ne4 {[%emt 0:23:30]} 22. Rh3 {[%emt 0:30:30]} Rae8 {[%emt 0:30:30]} 23. Qe2 {[%emt 0:23:30]} Nf8 {[%emt 0:23:30]} 24. Ng5 {[%emt 0:16:17]} Nxg5 {[%emt 0:01:35]} 25. fxg5 {[%emt 0:16:43]} Bxe5 {[%emt 0:01:53]} 26. dxe5 {[%emt 0:17:04]} Ne6 {[%emt 0:01:41]} 27. Qg4 {[%emt 0:15:52]} Rd7 {[%emt 0:01:47]} 28. Qh4 {[%emt 0:12:25]} Kf8 {[%emt 0:02:14]} 29. Rhf3 {[%emt 0:02:14]} Kg8 {[%emt 0:02:39]} 30. Rh3 {[%emt 0:09:09]} Kf8 {[%emt 0:03:04]} 31. Rhf3 {[%emt 0:09:36]} Kg8 {[%emt 0:00:21]} 1/2-1/2

[Event "1.FrauenBL 2016-17"]
[Site "Berlin"]
[Date "2017.04.29"]
[Round "9.4"]
[White "Osmanodja, Filiz"]
[Black "Kazarian, Anna-Maja"]
[Result "0-1"]
[ECO "C11"]
[WhiteElo "2370"]
[BlackElo "2257"]
[Annotator "NA"]
[PlyCount "128"]
[EventDate "2017.??.??"]
[EventType "team-tourn"]
[EventCountry "GER"]
[SourceTitle "playchess.com"]
[Source "ChessBase"]
[SourceQuality "1"]
[WhiteTeam "SC Bad Königshofen"]
[BlackTeam "Rodewischer SM"]
[TimeControl "40/6000+30:3000+30"]

1. e4 {[%emt 1:30:26]} e6 {[%emt 1:30:22]} 2. d4 {[%emt 1:30:55]} d5 {[%emt 1:30:46]} 3. Nc3 {[%emt 1:31:23]} Nf6 {[%emt 1:31:03]} 4. e5 {[%emt 1:31:52]} Nfd7 {[%emt 1:31:26]} 5. f4 {[%emt 1:32:21]} c5 {[%emt 1:31:50]} 6. Nf3 {[%emt 1:32:49]} Nc6 {[%emt 1:32:15]} 7. Be3 {[%emt 1:33:15]} a6 {[%emt 1:32:05]} 8. Qd2 {[%emt 1:31:46]} b5 {[%emt 1:32:29]} 9. dxc5 {[%emt 1:32:11]} Bxc5 {[%emt 1:32:52]} 10. Bxc5 {[%emt 1:32:52]} Nxc5 {[%emt 1:33:16]} 11. Qf2 {[%emt 1:28:52]} Qb6 {[%emt 1:32:01]} 12. Bd3 {[%emt 1:28:42]} b4 {[%emt 1:10:53]} 13. Ne2 {[%emt 1:29:04]} a5 {[%emt 1:09:59]} 14. O-O {[%emt 1:26:35]} Ba6 {[%emt 1:10:01]} 15. f5 {[%emt 1:24:12]} exf5 {[%emt 1:00:25]} 16. Nf4 {[%emt 1:00:25]} Ne7 {[%emt 0:57:02]} 17. e6 {[%emt 1:10:05]} f6 {[%emt 0:51:55]} 18. Rfe1 {[%emt 0:55:11]} Bxd3 {[%emt 0:45:55]} 19. Nxd3 {[%emt 0:47:19]} Rc8 {[%emt 0:45:00]} 20. a3 {[%emt 0:42:42]} O-O {[%emt 0:35:53]} 21. axb4 {[%emt 0:41:38]} axb4 {[%emt 0:36:08]} 22. Qd4 {[%emt 0:30:55]} Rc6 {[%emt 0:23:56]} 23. Nxb4 {[%emt 0:22:42]} Nxe6 {[%emt 0:23:14]} 24. Qxb6 {[%emt 0:22:09]} Rxb6 {[%emt 0:23:41]} 25. c3 {[%emt 0:19:44]} Rd8 {[%emt 0:11:03]} 26. Nd4 {[%emt 0:13:53]} Nxd4 {[%emt 0:08:45]} 27. Rxe7 {[%emt 0:13:39]} Ne6 {[%emt 0:08:02]} 28. Nd3 {[%emt 0:07:11]} d4 {[%emt 0:06:13]} 29. c4 {[%emt 0:07:05]} Rb3 {[%emt 0:03:44]} 30. Ra3 {[%emt 0:03:36]} Rxa3 {[%emt 0:03:36]} 31. bxa3 {[%emt 0:03:36]} Ng5 {[%emt 0:03:16]} 32. c5 {[%emt 0:03:04]} Ne4 {[%emt 0:03:15]} 33. c6 {[%emt 0:02:05]} Kf8 {[%emt 0:03:23]} 34. Rb7 {[%emt 0:01:50]} Rc8 {[%emt 0:03:09]} 35. Nb4 {[%emt 0:01:37]} d3 {[%emt 0:01:59]} 36. Rd7 {[%emt 0:01:51]} d2 {[%emt 0:01:51]} 37. Kf1 {[%emt 0:02:14]} Ke8 {[%emt 0:02:13]} 38. Rd3 {[%emt 0:01:46]} Kf7 {[%emt 0:00:27]} 39. Rd7+ {[%emt 0:00:48]} Ke6 {[%emt 0:00:29]} 40. Rd3 {[%emt 0:01:10]} g5 {[%emt 0:00:18]} 41. Ke2 {[%emt 0:22:07]} d1=Q+ 42. Rxd1 {[%emt 0:13:14]} Nc3+ {[%emt 0:29:43]} 43. Ke1 {[%emt 0:13:38]} Nxd1 {[%emt 0:30:06]} 44. Kxd1 {[%emt 0:14:06]} Ra8 {[%emt 0:29:48]} 45. c7 {[%emt 0:13:26]} Kd7 {[%emt 0:30:09]} 46. Nd5 {[%emt 0:13:33]} Rxa3 {[%emt 0:29:45]} 47. Nxf6+ {[%emt 0:13:38]} Kxc7 {[%emt 0:30:10]} 48. Nxh7 {[%emt 0:30:10]} g4 {[%emt 0:14:01]} 49. Ke2 {[%emt 0:13:20]} Kd6 {[%emt 0:26:01]} 50. Ng5 {[%emt 0:13:11]} Ra2+ {[%emt 0:24:42]} 51. Kf1 {[%emt 0:12:55]} Ra7 {[%emt 0:23:02]} 52. h3 {[%emt 0:11:19]} Rg7 {[%emt 0:23:16]} 53. h4 {[%emt 0:23:16]} Ke5 {[%emt 0:22:51]} 54. Kf2 {[%emt 0:11:56]} f4 {[%emt 0:22:40]} 55. Ke2 {[%emt 0:12:07]} Kf5 {[%emt 0:12:07]} 56. Kf2 {[%emt 0:12:09]} Ra7 {[%emt 0:21:59]} 57. Ke2 {[%emt 0:11:59]} Ra2+ {[%emt 0:21:44]} 58. Kf1 {[%emt 0:12:27]} Ra1+ {[%emt 0:22:07]} 59. Ke2 {[%emt 0:11:55]} Rh1 {[%emt 0:20:48]} 60. Nf7 {[%emt 0:12:23]} Rxh4 {[%emt 0:21:06]} 61. Nd6+ {[%emt 0:12:50]} Ke5 {[%emt 0:20:01]} 62. Nc4+ {[%emt 0:12:57]} Kd4 {[%emt 0:20:23]} 63. Nd2 {[%emt 0:12:43]} Rh2 {[%emt 0:20:38]} 64. Kf2 {[%emt 0:12:02]} f3 {[%emt 0:20:38]} 0-1

[Event "1.FrauenBL 2016-17"]
[Site "Berlin"]
[Date "2017.04.29"]
[Round "9.4"]
[White "Scognamiglio, Stefanie"]
[Black "Marx, Inga"]
[Result "1-0"]
[ECO "B06"]
[WhiteElo "2086"]
[BlackElo "1801"]
[Annotator "NA"]
[PlyCount "79"]
[EventDate "2017.??.??"]
[EventType "team-tourn"]
[EventCountry "GER"]
[SourceTitle "playchess.com"]
[Source "ChessBase"]
[SourceQuality "1"]
[WhiteTeam "Hamburger SK"]
[BlackTeam "TuRa Harksheide"]
[TimeControl "40/6000+30:3000+30"]

1. e4 {[%emt 1:30:27]} c6 {[%emt 1:30:24]} 2. d4 {[%emt 1:30:15]} g6 {[%emt 1:30:15]} 3. g3 {[%emt 1:28:45]} Bg7 {[%emt 1:30:35]} 4. Bg2 {[%emt 1:29:04]} d5 {[%emt 1:30:05]} 5. exd5 {[%emt 1:26:36]} cxd5 {[%emt 1:30:24]} 6. Ne2 {[%emt 1:25:51]} Nf6 {[%emt 1:29:10]} 7. O-O {[%emt 1:25:56]} O-O {[%emt 1:28:52]} 8. h3 {[%emt 1:28:52]} Nc6 {[%emt 1:25:40]} 9. c3 {[%emt 1:23:44]} b5 {[%emt 1:21:05]} 10. Be3 {[%emt 1:19:01]} a5 {[%emt 1:15:53]} 11. a3 {[%emt 1:16:32]} Ba6 {[%emt 1:07:12]} 12. b4 {[%emt 1:14:56]} a4 {[%emt 1:00:12]} 13. Nf4 {[%emt 1:12:35]} e6 {[%emt 0:58:06]} 14. Nd3 {[%emt 1:11:32]} Nd7 {[%emt 0:57:08]} 15. Nd2 {[%emt 1:06:59]} Ne7 {[%emt 0:54:52]} 16. Rc1 {[%emt 1:03:48]} Nf5 {[%emt 1:03:48]} 17. Bf4 {[%emt 1:02:37]} Nb6 {[%emt 0:52:04]} 18. Nc5 {[%emt 1:00:17]} Nd6 {[%emt 0:50:04]} 19. Re1 {[%emt 0:53:32]} Ndc4 {[%emt 0:47:34]} 20. Ra1 {[%emt 0:47:34]} Ra7 {[%emt 0:42:58]} 21. Nxc4 {[%emt 0:41:48]} Nxc4 {[%emt 0:41:48]} 22. Qc1 {[%emt 0:43:02]} Qc8 {[%emt 0:40:13]} 23. Bh6 {[%emt 0:38:20]} Re8 {[%emt 0:37:17]} 24. Bxg7 {[%emt 0:37:10]} Kxg7 {[%emt 0:37:41]} 25. Bf1 {[%emt 0:33:48]} Rae7 {[%emt 0:35:02]} 26. Bxc4 {[%emt 0:29:28]} dxc4 {[%emt 0:29:28]} 27. Nxa6 {[%emt 0:29:35]} Qxa6 {[%emt 0:29:35]} 28. Re5 {[%emt 0:35:29]} Rd8 {[%emt 0:32:29]} 29. Qe3 {[%emt 0:27:56]} Qb7 {[%emt 0:30:51]} 30. Re1 {[%emt 0:27:21]} Red7 {[%emt 0:25:57]} 31. Rc5 {[%emt 0:19:53]} Rd5 {[%emt 0:23:57]} 32. Qf3 {[%emt 0:23:57]} Qb8 {[%emt 0:22:53]} 33. Re5 {[%emt 0:15:09]} Rxe5 {[%emt 0:19:16]} 34. Rxe5 {[%emt 0:13:07]} Rd6 {[%emt 0:18:13]} 35. Rc5 {[%emt 0:18:13]} f6 {[%emt 0:13:22]} 36. Qf4 {[%emt 0:09:11]} Qb6 {[%emt 0:09:27]} 37. Rxb5 {[%emt 0:07:42]} Qxb5 {[%emt 0:07:54]} 38. Qxd6 {[%emt 0:08:04]} Qg5 {[%emt 0:07:24]} 39. Qc7+ {[%emt 0:06:54]} Kh6 {[%emt 0:07:22]} 40. Qf4 {[%emt 0:07:04]} 1-0